Cogmind - Beta 13 @@@ ROGUE MODE // 2024.04.13 @ 19:21:32 Player: SovietPaperclip Result: Self-destructed Performance ------------- Evolutions (3) 1500 Regions Visited (11) 2200 Robots Destroyed (143) 715 Value Destroyed (4615) 4615 Prototype IDs (29) 580 Alien Tech Used (0) 0 Bonus (1195) 1195 TOTAL SCORE: 10805 Bonus ------- High Alert Combat Kills 332 Follower Combat Kills 216 Entered Garrisons 400 Used RIF Installer 500 Aligned with FarCom 300 Friendly Fire -553 Cogmind --------- Core Integrity 519/700 Matter 261/300 Energy 229/290 System Corruption 7% Temperature Critical (999) Movement Treading (560) Ox5 Location -7/Garrison Parts ------- > --- POWER (2) -------- Improved Deuterium Engine > --- PROPULSION (4) --- Light Treads Armored Treads Medium Treads > --- UTILITY (4) ------ Advanced Heat Sink Cargo Storage Unit > --- WEAPON (3) ------- Gatling Laser High-powered Field Laser Ion Cannon > --- INVENTORY (30) --- Improved Deuterium Engine Reinforced Deuterium Engine Coolant Injector High-capacity Matter Pod (200) Improved Terrain Scanner Advanced Terrain Scan Processor Transmission Jammer Advanced ECM Suite Improved Light Armor Plating Improved Light Armor Plating Improved Light Armor Plating Improved Shield Generator Hacking Suite Hacking Suite System Shield System Restoration Module System Restoration Module Long-range Tractor Beam Ion Cannon Ion Cannon Ion Cannon YOLO Cannon Remote Datajack Remote Datajack Peak State ------------ > --- POWER ------------ Improved Deuterium Engine Improved Deuterium Engine > --- PROPULSION ------- Light Treads Light Treads Armored Treads Medium Treads > --- UTILITY ---------- Advanced Heat Sink Large Storage Unit Improved Light Armor Plating Hardlight Generator > --- WEAPON ----------- AWS/Autocannon > --- INVENTORY -------- Improved Deuterium Engine Reinforced Deuterium Engine Light Treads Coolant Injector High-capacity Matter Pod Advanced Terrain Scan Processor Advanced ECM Suite Improved Shield Generator Hacking Suite Hacking Suite System Shield Long-range Tractor Beam YOLO Cannon Remote Datajack [Rating: 65] Favorites ----------- Power Improved Deuterium Engine Engine Improved Deuterium Engine Power Core Light Nuclear Core Propulsion Light Treads Treads Light Treads Wheel Compact Wheel Utility Large Storage Unit Device Advanced Heat Sink Storage Large Storage Unit Protection Improved Light Armor Plating Weapon Improved Assault Rifle Energy Gun Gatling Laser Energy Cannon Advanced Beam Cannon Ballistic Gun Improved Assault Rifle Ballistic Cannon AWS/Autocannon Launcher Rocket Launcher Build | -11 -10 -10 -9 -9 -9 -8 -8 -8 -8 -7 -7 ------- Run | Yrd Mat Min Mat Min Exi Min Mat Gar Mat Fac Gar Slots Evolved 6 | . . . 2 . . . 2 . . 2 . Power 1 | . . . . . . . . . . 1 . Propulsion 2 | . . . 1 . . . 1 . . . . Utility 2 | . . . 1 . . . . . . 1 . Weapon 1 | . . . . . . . 1 . . . . Parts Attached 78 | 6 7 9 17 1 2 . 3 8 1 19 5 Power 10 | 1 1 1 3 . . . . . . 4 . Engine 7 | 1 . . 2 . . . . . . 4 . Core 3 | . 1 1 1 . . . . . . . . Reactor . | . . . . . . . . . . . . Propulsion 20 | 2 . 3 6 . . . 1 2 . 3 3 Treads 18 | 2 . 1 6 . . . 1 2 . 3 3 Leg . | . . . . . . . . . . . . Wheel 2 | . . 2 . . . . . . . . . Hover . | . . . . . . . . . . . . Flight . | . . . . . . . . . . . . Utility 15 | 1 3 1 2 1 . . 1 1 . 5 . Device 8 | . 1 1 1 1 . . 1 1 . 2 . Storage 3 | 1 1 . . . . . . . . 1 . Processor . | . . . . . . . . . . . . Hackware . | . . . . . . . . . . . . Protection 4 | . 1 . 1 . . . . . . 2 . Artifact . | . . . . . . . . . . . . Weapon 33 | 2 3 4 6 . 2 . 1 5 1 7 2 Energy Gun 6 | . . . . . . . . 1 . 4 1 Energy Cannon 7 | . . . 1 . 2 . . . . 3 1 Ballistic Gun 13 | 2 3 2 4 . . . . 2 . . . Ballistic Cannon 4 | . . . . . . . 1 2 1 . . Launcher 3 | . . 2 1 . . . . . . . . Special Weapon . | . . . . . . . . . . . . Impact Weapon . | . . . . . . . . . . . . Slashing Weapon . | . . . . . . . . . . . . Piercing Weapon . | . . . . . . . . . . . . Special Melee Weapon . | . . . . . . . . . . . . Unidentified Prototypes 4 | . 1 . 2 . . . . . . 1 . Parts Lost 19 | . 1 3 6 1 . . . 2 . 1 5 Power 3 | . 1 1 . . . . . . . . 1 Propulsion 8 | . . 1 2 . . . . 2 . 1 2 Utility 5 | . . 1 2 1 . . . . . . 1 Weapon 3 | . . . 2 . . . . . . . 1 Highest Loss Streak 4 | . 1 1 3 1 . . . 1 . 1 4 To Critical Strikes . | . . . . . . . . . . . . Average Slot Usage (%) 84 | . 88 94 88 97 88 88 70 80 81 82 89 Engine 10 | . 8 . 6 11 11 11 9 9 9 14 14 Core 1 | . 2 12 4 . . . . . . . . Treads 29 | . 22 18 26 33 33 33 30 35 36 29 28 Device 13 | . 3 9 9 20 11 11 12 18 18 14 7 Storage 9 | . 14 14 11 11 11 11 9 9 9 7 7 Protection 2 | . 8 4 6 . . . . . . 3 7 Energy Gun 2 | . . . . . . . . . . 4 21 Energy Cannon 1 | . . . . . 10 22 . . . . . Ballistic Gun 8 | . 28 27 20 22 11 . . 2 1 . . Ballistic Cannon 3 | . . . . . . . 9 5 7 4 . Naked Turns . | . . . . . . . . . . . . Heaviest Build 226 | 14 34 35 40 36 37 37 90 90 90 226 176 Greatest Support 91 | 40 40 40 63 63 63 63 83 83 83 91 88 Greatest Overweight (x) 2 | . 1 1 2 . . . 1 1 1 2 2 Average Overweight (x) . | . . . . . . . 1 . . 1 1 Largest Inventory Capacity 30 | 8 15 15 15 15 15 15 15 15 15 30 30 Average Capacity 17 | 5 14 15 15 15 15 15 15 15 15 21 30 Most Carried 28 | 5 13 13 15 14 15 15 15 15 15 27 28 Average Carried 14 | 2 5 11 14 13 13 15 14 14 14 17 26 Final Capacity 30 | 8 15 15 15 15 15 15 15 15 15 30 30 Final Carried 27 | 1 12 12 15 13 15 15 14 15 15 27 25 Class Distribution -------------------- 27% | Mutant 18% | Scavenger-Tank 16% | Scavenger-Skirmisher 11% | Scavenger-Mutant 9% | Hauler-Tank 4% | Hauler-Mutant 3% | Commander-Mutant 3% | Skirmisher Dominant Class ---------------- Mutant | -10/Materials Mutant | -10/Mines Scavenger-Mutant | -9/Materials Scavenger-Mutant | -9/Mines Mutant | -9/Exiles Mutant | -8/Mines Skirmisher | -8/Materials Scavenger-Skirmisher | -8/Garrison Scavenger-Skirmisher | -8/Materials Scavenger-Tank | -7/Factory Hauler-Tank | -7/Garrison Resources | -11 -10 -10 -9 -9 -9 -8 -8 -8 -8 -7 -7 ----------- Run | Yrd Mat Min Mat Min Exi Min Mat Gar Mat Fac Gar Matter Collected 2364 | 237 510 358 631 103 . 20 10 131 39 271 54 Remotely . | . . . . . . . . . . . . Salvage Created 4630 | . 662 562 1151 133 . 25 42 623 265 831 336 Parts 280 | . 57 30 64 1 . 4 1 39 12 57 15 Haulers Intercepted 6 | . 2 . 4 . . . . . . . . Recyclers Shooed 3 | . . 2 1 . . . . . . . . Parts Field Recycled . | . . . . . . . . . . . . Retrieved Matter . | . . . . . . . . . . . . Parts Self-Destructed . | . . . . . . . . . . . . Prevented . | . . . . . . . . . . . . Kills | -11 -10 -10 -9 -9 -9 -8 -8 -8 -8 -7 -7 ------- Run | Yrd Mat Min Mat Min Exi Min Mat Gar Mat Fac Gar Combat Hostiles Destroyed 102 | . 12 9 19 3 . . 1 22 8 20 8 Guns 46 | . 12 6 15 3 . . . . . 2 8 Cannons 49 | . . . 1 . . . 1 22 8 17 . AOE 7 | . . 3 3 . . . . . . 1 . Classes Destroyed 18 | . 7 2 1 1 . . . 4 1 1 1 Worker 7 | . 1 . 1 . . 2 . . . 3 . Builder 5 | . 3 1 . . . . . . . 1 . Tunneler 2 | . . 2 . . . . . . . . . Hauler 6 | . 2 . 4 . . . . . . . . Recycler 8 | . . 4 2 . . . . . . 2 . Operator 2 | . 1 . . . . . 1 . . . . Watcher 8 | . 2 . 2 . . . . 1 1 2 . Swarmer 16 | . 3 3 4 . . . . . 3 3 . Cutter 3 | . . . . . . . . . . . 3 Grunt 54 | . 9 6 11 2 . . . 13 4 6 3 Brawler 4 | . . . . . . . . . 1 3 . Duelist 1 | . . . . 1 . . . . . . . Protector 1 | . . . . . . . . 1 . . . Sentry 14 | . . . 4 . . . 1 3 1 3 2 Demolisher 1 | . . . . . . . . 1 . . . Specialist 1 | . . . . . . . . 1 . . . Hunter 4 | . . . . . . . . 3 . 1 . Programmer 6 | . . . . . . . . . . 6 . Best Kill Streak 7 | . 4 5 7 3 . 2 1 5 5 5 4 Combat Bots Only 5 | . 3 3 4 3 . . 1 5 5 5 4 Max Kills in Single Turn 2 | . 2 2 2 2 . 1 1 1 1 2 1 Gunslinging 1 | . . . 1 1 . . . . . . . Exploded 2 | . . 1 2 . . . . . . 1 . Melee . | . . . . . . . . . . . . Uniques/NPCs Destroyed . | . . . . . . . . . . . . Combat | -11 -10 -10 -9 -9 -9 -8 -8 -8 -8 -7 -7 -------- Run | Yrd Mat Min Mat Min Exi Min Mat Gar Mat Fac Gar Hostile Shots Fired 490 | . 80 48 94 12 . . 4 49 10 82 111 Missed 138 | . 23 13 21 8 . . 2 16 1 21 33 Damage Taken 4562 | . 622 402 895 45 . . 28 692 95 682 1101 Core 546 | . 108 89 88 . . . . 61 19 47 134 Absorbed by Shields 148 | . . . . . . . . 12 . 136 . Core Remaining (%) 71 | 100 . 21 . . . 78 . . 85 . . Volleys Fired 209 | . 57 31 60 6 . 2 . 21 3 11 18 Largest 3 | . 2 2 2 2 . 2 . 1 1 3 3 Hottest 230 | . 46 56 101 46 . 136 . 65 28 230 230 Shots Fired 521 | . 114 53 115 12 . 4 5 74 22 78 44 Gun 364 | . 114 45 107 12 . . . 21 3 21 41 Cannon 147 | . . . 6 . . 4 5 53 19 57 3 Launcher 10 | . . 8 2 . . . . . . . . Special . | . . . . . . . . . . . . Kinetic 427 | . 114 45 107 12 . . 5 69 22 53 . Thermal 84 | . . . 6 . . 4 . 5 . 25 44 Explosive 10 | . . 8 2 . . . . . . . . Electromagnetic . | . . . . . . . . . . . . Robot Hit Streak 49 | . 10 8 15 10 . 12 17 49 9 11 8 Robot Miss Streak 6 | . 4 4 4 1 . . . 1 2 4 6 Penetration Max . | . . . . . . . . . . . . Secondary Targets 11 | . 4 1 2 1 . . . . . . 3 Max Gunslinging Chain 1 | . 1 1 1 1 . . . . . . 1 Autonomous 131 | . . . . . . . 5 53 19 54 . Shots Hit Robots 363 | . 77 31 83 11 . 2 5 52 14 60 28 Core Hits 180 | . 31 20 39 5 . 2 2 17 9 33 22 Critical Kills 2 | . 1 1 . . . . . . . . . Critical Parts Destroyed 4 | . 2 . 2 . . . . . . . . Critical Strikes 17 | . 3 1 2 . . . 1 4 . 6 . Destroy 6 | . 3 1 2 . . . . . . . . Blast 11 | . . . . . . . 1 4 . 6 . Melee Attacks . | . . . . . . . . . . . . Impact . | . . . . . . . . . . . . Slashing . | . . . . . . . . . . . . Piercing . | . . . . . . . . . . . . Sneak Attacks . | . . . . . . . . . . . . Combat Hostiles . | . . . . . . . . . . . . Follow-up Attacks . | . . . . . . . . . . . . Damage Inflicted 13885 | . 1101 911 1583 168 . 62 336 3851 1032 4136 705 Guns 4069 | . 1101 426 1259 168 . . . 34 18 358 705 Cannons 8698 | . . . 20 . . 62 336 3817 1014 3449 . Explosions 1118 | . . 485 304 . . . . . . 329 . Melee . | . . . . . . . . . . . . Ramming . | . . . . . . . . . . . . Kinetic 11599 | . 1101 426 1259 168 . . 336 3851 1032 3426 . Thermal 1168 | . . . 20 . . 62 . . . 381 705 Explosive 1118 | . . 485 304 . . . . . . 329 . Electromagnetic . | . . . . . . . . . . . . Impact . | . . . . . . . . . . . . Slashing . | . . . . . . . . . . . . Piercing . | . . . . . . . . . . . . Highest Corruption 7 | . . . . . . . . . . 7 7 Average Corruption 3 | . . . . . . . . . . 3 7 Corruption Purged . | . . . . . . . . . . . . Corruption Blocked . | . . . . . . . . . . . . Effects 57 | . . . . . . . . . . 44 13 Message Errors 18 | . . . . . . . . . . 13 5 Matter Fused 11 | . . . . . . . . . . 8 3 Heat Flow Errors 12 | . . . . . . . . . . 9 3 Energy Discharges 8 | . . . . . . . . . . 7 1 Parts Rejected 2 | . . . . . . . . . . 2 . Data Loss (minor) 3 | . . . . . . . . . . 2 1 Data Loss (major) 3 | . . . . . . . . . . 3 . Overload Shots . | . . . . . . . . . . . . Overflow Damage 1516 | . . 7 51 . . . 19 610 147 682 . Projectiles 1347 | . . . . . . . 19 610 147 571 . Explosions 169 | . . 7 51 . . . . . . 111 . Melee . | . . . . . . . . . . . . Knockbacks 22 | . . . . . . . . 13 2 7 . Impact . | . . . . . . . . . . . . Kinetic 20 | . . . . . . . . 11 2 7 . Secondary 2 | . . . . . . . . 2 . . . Self-Inflicted Damage 200 | . . . . . . . . . . 200 . Shots 3 | . . . . . . . . . . 3 . Rammed . | . . . . . . . . . . . . Targets Rammed . | . . . . . . . . . . . . Kicked . | . . . . . . . . . . . . Crushed . | . . . . . . . . . . . . Highest Temperature 999 | . 78 68 131 . . 36 . . . 239 999 Average Temperature 113 | . 48 22 41 . . 21 . . . 89 278 Received Heat Transfer 1577 | . 291 174 372 24 . . 9 141 36 98 432 Effects 13 | . . . . . . . . . . . 13 Shutdowns 2 | . . . . . . . . . . . 2 Interference 2 | . . . . . . . . . . . 2 Matter Decay 1 | . . . . . . . . . . . 1 Short Circuit 3 | . . . . . . . . . . . 3 Damage (minor) 1 | . . . . . . . . . . . 1 Damage (major) 3 | . . . . . . . . . . . 3 Damage (core) 1 | . . . . . . . . . . . 1 Siege Activations . | . . . . . . . . . . . . Robots Corrupted . | . . . . . . . . . . . . Combat Hostiles . | . . . . . . . . . . . . Parts Fried . | . . . . . . . . . . . . Impact Corruptions . | . . . . . . . . . . . . Robots Melted . | . . . . . . . . . . . . Combat Hostiles . | . . . . . . . . . . . . Parts Melted 4 | . . . . . . . . . . 1 3 Heat Transferred 2366 | . . . 37 . . 111 . . . 786 1432 Parts Sabotaged . | . . . . . . . . . . . . Parts Stolen . | . . . . . . . . . . . . Parts Stripped . | . . . . . . . . . . . . Power Chain Reactions . | . . . . . . . . . . . . Alert | -11 -10 -10 -9 -9 -9 -8 -8 -8 -8 -7 -7 ------- Run | Yrd Mat Min Mat Min Exi Min Mat Gar Mat Fac Gar Peak Influence 810 | . 227 272 505 166 . 10 66 810 759 444 494 Initial 394 | . . 24 27 106 . . 3 42 394 345 299 Average 303 | . 69 144 278 116 . 2 37 519 597 310 367 Maximum Alert Level 3 | . 1 1 2 . . . . 3 3 2 2 Low Security (%) 29 | 100 98 57 25 100 . 100 100 10 . 4 . Level 1 41 | . 1 42 47 . . . . 11 7 80 77 Level 2 22 | . . . 26 . . . . 54 69 14 22 Level 3 5 | . . . . . . . . 23 22 . . Level 4 . | . . . . . . . . . . . . Level 5 . | . . . . . . . . . . . . High Security . | . . . . . . . . . . . . Max Security . | . . . . . . . . . . . . Squads Dispatched 13 | . 1 . 1 . . . . . 2 9 . Investigation 2 | . . . 1 . . . . . . 1 . Extermination 5 | . . . . . . . . . . 5 . Reinforcement 3 | . 1 . . . . . . . 2 . . Assault . | . . . . . . . . . . . . Garrison 3 | . . . . . . . . . . 3 . Intercept . | . . . . . . . . . . . . Searches Triggered . | . . . . . . . . . . . . Construction Impeded . | . . . . . . . . . . . . Haulers Reinforced . | . . . . . . . . . . . . Active Scanning Responses . | . . . . . . . . . . . . Cargo Convoy Interrupts . | . . . . . . . . . . . . Stealth | -11 -10 -10 -9 -9 -9 -8 -8 -8 -8 -7 -7 --------- Run | Yrd Mat Min Mat Min Exi Min Mat Gar Mat Fac Gar Distress Signals 4 | . . . 1 . . . . 1 1 1 . Communications Jammed . | . . . . . . . . . . . . Distress Signals . | . . . . . . . . . . . . Times Spotted 130 | . 17 9 30 3 . . 1 20 11 26 13 Peak Tracking Total 6 | . 3 3 5 3 . . 1 4 6 2 6 Tactical Retreats 5 | . . . 1 . . . . 1 1 1 1 Traps | -11 -10 -10 -9 -9 -9 -8 -8 -8 -8 -7 -7 ------- Run | Yrd Mat Min Mat Min Exi Min Mat Gar Mat Fac Gar Traps Triggered 13 | . 1 . 1 . . . . 8 . 3 . Indirectly . | . . . . . . . . . . . . Trap Hack Attempts . | . . . . . . . . . . . . Triggered . | . . . . . . . . . . . . Disarmed . | . . . . . . . . . . . . Reprogrammed . | . . . . . . . . . . . . Reused . | . . . . . . . . . . . . Traps Extracted . | . . . . . . . . . . . . Installed . | . . . . . . . . . . . . Triggered . | . . . . . . . . . . . . Machines | -11 -10 -10 -9 -9 -9 -8 -8 -8 -8 -7 -7 ---------- Run | Yrd Mat Min Mat Min Exi Min Mat Gar Mat Fac Gar Machines Disabled 11 | . . . 1 . . . . 2 . 7 1 Max in Single Turn 3 | . . . 1 . . . . 1 . 3 1 Garrison Relay 1 | . . . . . . . . 1 . . . Machines Repaired . | . . . . . . . . . . . . Machines Dismantled . | . . . . . . . . . . . . Machines Sabotaged . | . . . . . . . . . . . . Overloaded Fab Kills . | . . . . . . . . . . . . Hacking | -11 -10 -10 -9 -9 -9 -8 -8 -8 -8 -7 -7 --------- Run | Yrd Mat Min Mat Min Exi Min Mat Gar Mat Fac Gar Machines Accessed 18 | . . . 3 . 1 . 3 3 1 7 . Terminals 13 | . . . 3 . . . 1 3 1 5 . Fabricators 1 | . . . . . . . . . . 1 . Repair Stations . | . . . . . . . . . . . . Recycling Units . | . . . . . . . . . . . . Scanalyzers 1 | . . . . . . . 1 . . . . Garrison Access 2 | . . . . . . . 1 . . 1 . Total Hacks 35 | . . . 7 . 1 . 6 6 1 14 . Successful 23 | . . . 3 . 1 . 6 2 1 10 . Failed 12 | . . . 4 . . . . 4 . 4 . Catastrophic 1 | . . . . . . . . . . 1 . Database Lockouts . | . . . . . . . . . . . . Manual 10 | . . . 6 . 1 . 1 . . 2 . Terminals 26 | . . . 7 . . . 1 6 1 11 . Fabricators 2 | . . . . . . . . . . 2 . Repair Stations . | . . . . . . . . . . . . Recycling Units . | . . . . . . . . . . . . Scanalyzers 4 | . . . . . . . 4 . . . . Garrison Access 2 | . . . . . . . 1 . . 1 . Terminal Hacks 15 | . . . 3 . 1 . 1 2 1 7 . Record 1 | . . . 1 . . . . . . . . Part Schematic 3 | . . . 1 . . . . . . 2 . Prototype ID Bank 1 | . . . . . . . . . . 1 . Branch Access Points 3 | . . . 1 . . . 1 . 1 . . Emergency Access Points 1 | . . . . . . . . 1 . . . Scanalyzer Index 1 | . . . . . . . . . . 1 . Unreport Threat 1 | . . . . . . . . . . 1 . Locate Traps 1 | . . . . . . . . . . 1 . Zone Layout 1 | . . . . . . . . . . 1 . Security Stations 1 | . . . . . . . . 1 . . . Derelict Proto ID Bank 1 | . . . . . 1 . . . . . . Fabricator Hacks 2 | . . . . . . . . . . 2 . Load Schematic 1 | . . . . . . . . . . 1 . Build 1 | . . . . . . . . . . 1 . Repair Station Hacks . | . . . . . . . . . . . . Recycling Unit Hacks . | . . . . . . . . . . . . Scanalyzer 4 | . . . . . . . 4 . . . . Insert Component 2 | . . . . . . . 2 . . . . Analyze 2 | . . . . . . . 2 . . . . Garrison Access Hacks 2 | . . . . . . . 1 . . 1 . Unlock Access 2 | . . . . . . . 1 . . 1 . Unauthorized Hacks . | . . . . . . . . . . . . Terminals . | . . . . . . . . . . . . Fabricators . | . . . . . . . . . . . . Repair Stations . | . . . . . . . . . . . . Recycling Units . | . . . . . . . . . . . . Scanalyzers . | . . . . . . . . . . . . Garrison Access . | . . . . . . . . . . . . Data Cores Recovered 1 | . . . . . . . 1 . . . . Used . | . . . . . . . . . . . . Hacking Detections 11 | . . . 1 . . . 2 2 . 6 . Full Trace Events 1 | . . . . . . . . . . 1 . Feedback Events . | . . . . . . . . . . . . Feedback Blocked . | . . . . . . . . . . . . Robot Schematics Acquired . | . . . . . . . . . . . . Robots Built . | . . . . . . . . . . . . Authchips . | . . . . . . . . . . . . Time . | . . . . . . . . . . . . Total Robot Build Rating . | . . . . . . . . . . . . Part Schematics Acquired 5 | . . . 1 . . . 2 . . 2 . Parts Built 1 | . . . . . . . . . . 1 . Authchips . | . . . . . . . . . . . . Time 51 | . . . . . . . . . . 51 . Total Part Build Rating 1 | . . . . . . . . . . 1 . Parts Repaired . | . . . . . . . . . . . . Time . | . . . . . . . . . . . . Parts Recycled . | . . . . . . . . . . . . Recycled Matter . | . . . . . . . . . . . . Retrieved Matter . | . . . . . . . . . . . . Retrieved Components . | . . . . . . . . . . . . Parts Scanalyzed 2 | . . . . . . . 2 . . . . Part Schematics Acquired 2 | . . . . . . . 2 . . . . Parts Damaged . | . . . . . . . . . . . . Bothacking | -11 -10 -10 -9 -9 -9 -8 -8 -8 -8 -7 -7 ------------ Run | Yrd Mat Min Mat Min Exi Min Mat Gar Mat Fac Gar Used RIF Installer 1 | . . . . . . . . 1 . . . Robots Hacked . | . . . . . . . . . . . . Non-combat . | . . . . . . . . . . . . Combat . | . . . . . . . . . . . . Robot Hacks Applied . | . . . . . . . . . . . . Relay Couplers Released 4 | . . . . . . . . 4 . . . Machine Destruction 4 | . . . . . . . . 4 . . . Fabnet Peak Effective % . | . . . . . . . . . . . . Robots Rewired 8 | . . . . . . . . 8 . . . Allies Hacked . | . . . . . . . . . . . . Hacks Repelled . | . . . . . . . . . . . . Allies | -11 -10 -10 -9 -9 -9 -8 -8 -8 -8 -7 -7 -------- Run | Yrd Mat Min Mat Min Exi Min Mat Gar Mat Fac Gar Total Allies 8 | . . . . . . . . 8 . . . Largest Group 8 | . . . . . . . . 8 8 3 . Highest-Rated Group 80 | . . . . . . . . 80 80 30 . Highest-Rated Ally 10 | . . . . . . . . 10 10 10 . Total Orders . | . . . . . . . . . . . . Ally Attacks 31 | . . . . . . . . 7 17 7 . Total Damage 533 | . . . . . . . . 103 272 158 . Kills 7 | . . . . . . . . 1 5 1 . Allies Corrupted . | . . . . . . . . . . . . Allies Melted . | . . . . . . . . . . . . Intel | -11 -10 -10 -9 -9 -9 -8 -8 -8 -8 -7 -7 ------- Run | Yrd Mat Min Mat Min Exi Min Mat Gar Mat Fac Gar Robot Analysis Total . | . . . . . . . . . . . . Derelict Logs Recovered 2 | . . 1 . 1 . . . . . . . Drone Launches . | . . . . . . . . . . . . Drone Recoveries . | . . . . . . . . . . . . Exploration | -11 -10 -10 -9 -9 -9 -8 -8 -8 -8 -7 -7 ------------- Run | Yrd Mat Min Mat Min Exi Min Mat Gar Mat Fac Gar Turns Passed 9034 | 84 976 421 916 350 355 139 271 1721 397 3139 265 Spaces Moved 3815 | 50 390 200 476 202 219 84 105 701 172 1140 76 Core 7 | 7 . . . . . . . . . . . Treads 3612 | 43 390 135 345 202 219 84 105 701 172 1140 76 Legs . | . . . . . . . . . . . . Wheels 196 | . . 65 131 . . . . . . . . Hover . | . . . . . . . . . . . . Flight . | . . . . . . . . . . . . Fastest Speed 50 | 50 160 100 100 160 160 160 240 160 160 240 242 Average Speed 204 | 144 184 155 143 160 160 160 240 208 220 255 245 Slowest Speed 323 | 160 240 240 160 160 160 160 240 240 240 322 323 Overloaded Moves . | . . . . . . . . . . . . Propulsion Burnouts . | . . . . . . . . . . . . Robots Hopped . | . . . . . . . . . . . . Cave-ins Triggered . | . . . . . . . . . . . . Exploration Rate (%) 38 | 4 64 57 42 44 60 41 11 65 25 28 21 Regions Visited 11 Branch Regions 4 Pre-discovered Areas . | . . . . . . . . . . . . Known Exits Taken 5 | . . 1 1 1 . . 1 . . 1 . Unknown Exits Taken 5 | 1 1 . . . 1 1 . . 1 . . Scrap Searched 3 | . . 1 . 1 . 1 . . . . . Spaces Dug . | . . . . . . . . . . . . Terrain Destroyed 108 | . . 44 21 . . . 1 4 7 31 . Melee . | . . . . . . . . . . . . Projectile 19 | . . . . . . . 1 4 7 7 . AOE 89 | . . 44 21 . . . . . . 24 . Terrain Rammed . | . . . . . . . . . . . . Walls Destroyed . | . . . . . . . . . . . . Machines Disabled . | . . . . . . . . . . . . Actions | -11 -10 -10 -9 -9 -9 -8 -8 -8 -8 -7 -7 --------- Run | Yrd Mat Min Mat Min Exi Min Mat Gar Mat Fac Gar Total 4705 | 62 533 255 596 217 225 85 127 948 187 1357 113 Wait 327 | . 60 8 12 8 . . 8 86 8 126 11 Move 3803 | 49 389 199 475 201 218 83 104 699 171 1139 76 Hop . | . . . . . . . . . . . . Pick Up 123 | 7 17 6 21 . 2 . 7 17 3 40 3 Fast Attach . | . . . . . . . . . . . . Attach 60 | 6 4 5 11 1 2 . 3 8 1 14 5 Detach . | . . . . . . . . . . . . Swap 18 | . 3 4 6 . . . . . . 5 . Drop 64 | . 3 2 11 1 3 . 5 16 1 22 . Fire 209 | . 57 31 60 6 . 2 . 21 3 11 18 Melee . | . . . . . . . . . . . . Ram . | . . . . . . . . . . . . Kick . | . . . . . . . . . . . . Crush . | . . . . . . . . . . . . Escape Stasis 9 | . . . . . . . . 9 . . . Rewire 92 | . . . . . . . . 92 . . . Trap . | . . . . . . . . . . . . Miscellaneous . | . . . . . . . . . . . . Route ------- -11/Scrapyard -10/Materials (discovered 3 exits: *Mat x2 / [*Min]) -10/Mines -9/Materials (discovered 3 exits: *Mat / *Min x2) -9/Mines (discovered 2 exits: *Mat / *Exi) -9/Exiles -8/Mines -8/Materials -8/Garrison (discovered 3 exits: *Mat x3) -8/Materials -7/Factory -7/Garrison History --------- Turn | Location | Event 16 | -11/Scrapyard | Discovered new exit (range 14) 85 | -11/Scrapyard | Entered Materials 204 | -10/Materials | Discovered new exit (range 13) 308 | -10/Materials | Build established: Mutant 525 | -10/Materials | Discovered new exit (range 11) 769 | -10/Materials | Discovered new exit (range 16) 1061 | -10/Materials | Entered Mines 1197 | -10/Mines | Core integrity fell below 50% 1339 | -10/Mines | Identified exit to Materials 1482 | -10/Mines | Entered Materials 1482 | -9/Materials | Evolved 2 slots: Propulsion x1, Utility x1 1544 | -9/Materials | Discovered new exit (range 11) 1588 | -9/Materials | Identified exit to Mines 1600 | -9/Materials | Discovered new exit (range 16) 2034 | -9/Materials | Build established: Scavenger-Mutant 2160 | -9/Materials | Lost 3 parts (1n1u1w) 2398 | -9/Materials | Entered Mines 2399 | -9/Mines | Met a Derelict bent on vengeance 2474 | -9/Mines | Discovered new exit (range 7) 2548 | -9/Mines | Identified exit to Exiles 2741 | -9/Mines | Deemed a non-threat by the Exiles lab entrance 2748 | -9/Mines | Entered Exiles 2785 | -9/Exiles | Met 8R-AWN 2814 | -9/Exiles | Met EX-HEX 2860 | -9/Exiles | Met EX-BIN 2883 | -9/Exiles | Aligned with FarCom system 2884 | -9/Exiles | Given EX-Vault access code 2921 | -9/Exiles | Opened EX-Vault 2934 | -9/Exiles | Found YOLO Cannon 2947 | -9/Exiles | Found AWS/Autocannon 2978 | -9/Exiles | Build established: Mutant 2980 | -9/Exiles | Warned to stay clear of 0b10 Research branches 2992 | -9/Exiles | Exiles lab attacked by MAIN.C 3084 | -9/Exiles | Discovered new exit (range 14) 3103 | -9/Exiles | Stole two prototypes: YOLO Cannon, AWS/Autocannon 3103 | -9/Exiles | Entered Mines 3236 | -8/Mines | Discovered new exit (range 3) 3242 | -8/Mines | Entered Materials 3242 | -8/Materials | Evolved 2 slots: Propulsion x1, Weapon x1 3510 | -8/Materials | Identified exit to Garrison 3513 | -8/Materials | Entered Garrison 3581 | -8/Garrison | Learned Materials security intel 3625 | -8/Garrison | Triggered checkpoint 3681 | -8/Garrison | Triggered checkpoint 3727 | -8/Garrison | Triggered checkpoint 3759 | -8/Garrison | Triggered checkpoint 3861 | -8/Garrison | Discovered new exit (range 9) 3875 | -8/Garrison | Triggered checkpoint 3919 | -8/Garrison | Triggered checkpoint 4091 | -8/Garrison | Build established: Scavenger-Skirmisher 4195 | -8/Garrison | Discovered new exit (range 14) 4392 | -8/Garrison | Installed Relay Interface Framework 4467 | -8/Garrison | Triggered checkpoint 4575 | -8/Garrison | Discovered new exit (range 12) 4822 | -8/Garrison | Garrison Relay disabled 4957 | -8/Garrison | Build established: Scavenger-Mutant 5234 | -8/Garrison | Entered Materials 5234 | -8/Materials | Accompanied by 8 allies 5261 | -8/Materials | Build established: Commander-Mutant 5361 | -8/Materials | Lost 4 allies 5566 | -8/Materials | Discovered new exit (range 11) 5631 | -8/Materials | Entered Factory 5631 | -7/Factory | Accompanied by 3 allies 5631 | -7/Factory | Evolved 2 slots: Power x1, Utility x1 5633 | -7/Factory | Build established: Scavenger-Skirmisher 5633 | -7/Factory | FarCom data flow suspended 5999 | -7/Factory | Build established: Scavenger-Tank 6082 | -7/Factory | Garrison activated, responded to threat 7440 | -7/Factory | Fabricated Cargo Storage Unit (x1) 8026 | -7/Factory | Build established: Hauler-Mutant 8422 | -7/Factory | Build established: Hauler-Tank 8768 | -7/Factory | Identified exit to Garrison 8770 | -7/Factory | Entered Garrison 8970 | -7/Garrison | Triggered checkpoint 9017 | -7/Garrison | Triggered checkpoint 9035 | -7/Garrison | Self-destructed Last Messages --------------- 09023_ Overheating: Med. Treads damaged (-19). 09025_ Lgt. Treads broken. 09025_ Overheating: Short circuit. 09025_ Lgt. Nuclear Core melted. 09025_ G-47 Trooper destroyed. 09025_ Switching to secondary target: G-50 Soldier. 09026_ Gatling Laser destroyed. 09027_ Overheating: Matter decay (-38). 09028_ Hpw. Field Laser broken. 09028_ Overheating: Short circuit. 09029_ System corrupted: Heat flow error (+177). 09030_ Power failure, Imp. Deuterium Engine shutdown. 09031_ Overheating: Cargo Storage Unit damaged (-418). 09032_ Overheating: Gatling Laser damaged (-25). 09032_ Lgt. Treads destroyed. 09034_ Imp. Light Armor Plating destroyed. 09035_ Overheating: Core damaged (-77). Map ----- +----------------------------------------------------+ | ?????????????????????????????????????????????????? | | ?????????????????????????????????????????????????? | | ?????????????????????????????????????????????????? | | ?????????????????????????????????????????????????? | | ?????????????????????????????????????????????????? | | ?????????????????????????????????????????????????? | | ?????????????????????????????????????????????????? | | ?????????????????????????????????????????????????? | | ????????????????????????? #????????????????????? | | ????????????????????????? #????????????????????? | | ????????????????? ??????? #????????????????????? | | ????????????? ??? ?????? +????????????????????? | | ????????????? ?? ?????? g+????????????????????? | | ?????????????# ?# ?????[ %#????????????????????? | | ?????????????# ## ????#%gg##???????????????????? | | ?????????????" ??? ???????????????????? | | ?????????????" ??? C???????????????????? | | ??????????????? ?? ????????????????????? | | ????????????????? ?? ????????????????????? | | ?????????????#????# ^?#^^ #????????????????????? | | ??????????#### ## ## ##########???????????? | | ????????? #???????????? | | ????????? [[! #???????????? | | ?????????????# *%==#####?# #???????????? | | ?????????????## ## ##%%##?# #?# #???????????? | | ??????????????????#*% ?#@%#??# ### ???????????? | | ??????????????????####??# =#??# + ???????????? | | ????????????????????????# #### ### #???????????? | | ????????????????????????# # #?# #???????????? | | ????????????????????????# #### #?# #???????????? | | ????????????????????????# #??# #?#=*#???????????? | | ????????????????????????# #### ###==############# | | ????????????????????????# ! = ! | | ????????????????????????# / | | ????????????????????????####### ################ | | ??????????????????????????????# #??????????????# | | ??????????????????????????????# #??????????????# | | ??????????????????????????????# #??????????????# | | ??????????????????????????????# #??????????????# | | ??????????????????????????????# #??????????????# | | ??????????????????????????????? ???????????????# | | ??????????????????????????????? ???????????????# | | ???????????????????????????????^???????????????# | | ??????????????????????????????? ???????????????### | | ???????????????????????????????#?????????????????? | | ?????????????????????????????????????????????????? | | ?????????????????????????????????????????????????? | | ?????????????????????????????????????????????????? | | ?????????????????????????????????????????????????? | | ?????????????????????????????????????????????????? | +----------------------------------------------------+ Best States ------------- Heat Dissipation 56 Energy Generation 27 Energy Capacity 480 Matter Stores 300 Matter Capacity 300 Sight Range 16 Robot Scan Range 15 Terrain Scan Density 10 Armor Coverage 150 Evasion (%) 50 Recoil Reduction 4 Item Schematics ----------------- Huge Storage Unit | -9/Materials | Hacked Adv. Terrain Scan Processor | -8/Materials | Scanalyzed Hacking Suite | -8/Materials | Scanalyzed Gatling Laser | -7/Factory | Hacked Cargo Storage Unit | -7/Factory | Hacked Robot Schematics ------------------ None Fabricated ------------ Cargo Storage Unit | x1 | -7/Factory Alien Tech Used ----------------- None Achievements -------------- None Challenges ------------ None Game ------ Seed BurstGravmagDiverter Manual? 0 Play Time 00:49:51 Cumulative 85.5 hours Start 2024.04.13 @ 18:33:15 End 2024.04.13 @ 19:21:32 Sessions 1 Manual Loads 0 Difficulty Rogue Special Mode None Game No. 98 Rogue 98 Adventurer 0 Explorer 0 Win Type - Total 1 Types 1/0/0/0/0/0/0/0/0 Lore% 42 Gallery% 47 Achievement% 44 Wizard Run 0 Options --------- Layout 1 ASCII 0 Keyboard 0 Movement Mouse Keybinds 0 Fullscreen 2 Font 32/Smallcaps Map View 50x40 Zoom Use 0% Tactical HUD 1 Map Filters NONE Filters NONE Steam 1 RUN: 5501a4c0-d2ef-449a-afbc-3d12fcf4cbd9